Cogmind - Beta 9.5 @@@ ROGUE MODE // 2020.04.08 @ 19:39:52 Player: V_ Result: Self-destructed Performance ------------- Evolutions (1) 500 Regions Visited (3) 600 Robots Destroyed (45) 225 Value Destroyed (804) 804 Prototype IDs (1) 20 Alien Tech Used (0) 0 Bonus (0) 0 TOTAL SCORE: 2149 Bonus ------- None Cogmind --------- Core Integrity 304/400 Matter 300/300 Energy 580/580 System Corruption 0% Temperature Cool (0) Movement Treading (160) Location -9/Mines Parts ------- > --- POWER (1) -------- Cooled Ion Engine > --- PROPULSION (4) --- Light Treads Improved Treads Improved Treads Improved Treads > --- UTILITY (2) ------ Heat Sink Compact Battery > --- WEAPON (2) ------- EM Pulse Cannon EM Pulse Cannon > --- INVENTORY (4) ---- Light Ion Engine Compact Battery (300) Mining Laser Mining Claw Peak State ------------ > --- POWER ------------ Light Ion Engine > --- PROPULSION ------- Light Treads Improved Treads Improved Treads Improved Treads > --- UTILITY ---------- Compact Battery Compact Battery > --- WEAPON ----------- EM Pulse Cannon EM Pulse Cannon > --- INVENTORY -------- Light Ion Engine High-capacity Matter Pod Mining Laser Mining Claw [Rating: 20] Favorites ----------- Power Light Ion Engine Engine Light Ion Engine Power Core Light Nuclear Core Propulsion Aluminum Leg Treads Improved Treads Leg Aluminum Leg Utility Compact Battery Device Heat Sink Storage Compact Battery Processor Seismic Analyzer Weapon EM Pulse Cannon Energy Gun EM Pulse Gun Energy Cannon EM Pulse Cannon Ballistic Gun Assault Rifle Launcher Grenade Launcher Special Weapon Mining Laser Slashing Weapon Mining Claw Build | -11 -10 -9 -9 ------- Run | Scr Mat Mat Min Slots Evolved 2 | . . 2 . Power . | . . . . Propulsion 2 | . . 2 . Utility . | . . . . Weapon . | . . . . Parts Attached 41 | 9 15 17 . Power 7 | 1 3 3 . Engine 6 | 1 2 3 . Core 1 | . 1 . . Reactor . | . . . . Propulsion 13 | 2 6 5 . Treads 5 | . . 5 . Leg 8 | 2 6 . . Wheel . | . . . . Hover . | . . . . Flight . | . . . . Utility 9 | 4 1 4 . Device 2 | 1 . 1 . Storage 6 | 2 1 3 . Processor 1 | 1 . . . Hackware . | . . . . Protection . | . . . . Artifact . | . . . . Weapon 12 | 2 5 5 . Energy Gun 2 | 1 1 . . Energy Cannon 4 | . . 4 . Ballistic Gun 3 | 1 2 . . Ballistic Cannon . | . . . . Launcher 1 | . 1 . . Special Weapon 1 | . . 1 . Impact Weapon . | . . . . Slashing Weapon 1 | . 1 . . Piercing Weapon . | . . . . Special Melee Weapon . | . . . . Unidentified Prototypes 1 | . . 1 . Parts Lost 5 | . 5 . . Power . | . . . . Propulsion 2 | . 2 . . Utility . | . . . . Weapon 3 | . 3 . . Highest Loss Streak 3 | . 3 . . Average Slot Usage (%) 92 | . 92 87 100 Engine 10 | . 9 10 11 Core 1 | . 4 . . Treads 17 | . . 23 44 Leg 14 | . 25 9 . Device 5 | . 5 2 11 Storage 12 | . 8 17 11 Processor 6 | . 14 1 . Energy Gun 3 | . 8 . . Energy Cannon 11 | . . 18 22 Ballistic Gun 3 | . 8 . . Launcher 1 | . 2 . . Slashing Weapon 2 | . 3 1 . Naked Turns . | . . . . Heaviest Build 22 | 14 13 22 22 Greatest Support 89 | 20 20 89 89 Greatest Overweight (x) 5 | . 3 5 . Average Overweight (x) . | . . . . Largest Inventory Capacity 6 | 6 4 4 4 Average Capacity 4 | 4 4 4 4 Most Carried 4 | 4 4 4 4 Average Carried 3 | 2 3 3 4 Final Capacity 4 | 4 4 4 4 Final Carried 4 | 4 2 4 4 Class Distribution -------------------- 80% | Mutant 19% | Scavenger-Mutant Dominant Class ---------------- Mutant | -10/Materials Mutant | -9/Materials Mutant | -9/Mines Resources | -11 -10 -9 -9 ----------- Run | Scr Mat Mat Min Matter Collected 1051 | 150 580 321 . Remotely . | . . . . Salvage Created 1389 | 267 544 477 101 Parts 96 | 27 31 29 9 Haulers Intercepted 2 | . . 2 . Recyclers Shooed 1 | . . 1 . Parts Field Recycled . | . . . . Retrieved Matter . | . . . . Parts Self-Destructed . | . . . . Prevented . | . . . . Kills | -11 -10 -9 -9 ------- Run | Scr Mat Mat Min Combat Hostiles Destroyed 21 | . 12 5 4 Melee 2 | . 2 . . Guns 5 | . 5 . . Cannons 7 | . . 3 4 AOE 6 | . 5 1 . Classes Destroyed 11 | 3 5 3 . Worker 5 | 2 3 . . Builder 2 | . 1 1 . Tunneler 8 | 7 . . 1 Hauler 2 | . . 2 . Recycler 2 | 1 1 . . Operator 1 | . 1 . . Watcher 4 | . 1 3 . Swarmer 7 | . 3 . 4 Grunt 11 | . 9 2 . Duelist 1 | . . 1 . Sentry 2 | . . 2 . Best Kill Streak 7 | 6 7 3 3 Combat Bots Only 4 | . 4 2 3 Max Kills in Single Turn 3 | 1 3 2 1 Gunslinging . | . . . . Exploded 2 | . 2 1 . Melee 1 | . 1 . . Uniques/NPCs Destroyed . | . . . . Combat | -11 -10 -9 -9 -------- Run | Scr Mat Mat Min Damage Taken 1490 | . 826 340 324 Core 256 | . 160 67 29 Absorbed by Shields . | . . . . Core Remaining (%) 68 | 100 36 . . Volleys Fired 84 | 17 36 19 12 Largest 2 | 2 2 2 2 Hottest 126 | 60 60 126 126 Shots Fired 163 | 34 67 38 24 Gun 86 | 34 52 . . Cannon 62 | . . 38 24 Launcher 15 | . 15 . . Special . | . . . . Kinetic 49 | 17 32 . . Thermal . | . . . . Explosive 15 | . 15 . . Electromagnetic 99 | 17 20 38 24 Robot Hit Streak 11 | 3 11 10 8 Robot Miss Streak 4 | 4 2 2 3 Penetration Max . | . . . . Secondary Targets 1 | . 1 . . Max Gunslinging Chain 1 | . 1 . . Shots Hit Robots 90 | 15 32 27 16 Core Hits 59 | 10 34 10 5 Critical Hits 1 | . . 1 . Critical Kills . | . . . . Critical Parts Destroyed 1 | . . 1 . Melee Attacks 10 | . 10 . . Impact . | . . . . Slashing 10 | . 10 . . Piercing . | . . . . Sneak Attacks . | . . . . Combat Hostiles . | . . . . Follow-up Attacks . | . . . . Damage Inflicted 2341 | 276 917 811 337 Guns 596 | 243 353 . . Cannons 1052 | . . 715 337 Explosions 599 | 33 470 96 . Melee 94 | . 94 . . Ramming . | . . . . Kinetic 212 | 76 136 . . Thermal 129 | 33 . 96 . Explosive 470 | . 470 . . Electromagnetic 1436 | 167 217 715 337 Impact . | . . . . Slashing 94 | . 94 . . Piercing . | . . . . Highest Corruption . | . . . . Average Corruption . | . . . . Corruption Purged . | . . . . Overload Shots . | . . . . Overflow Damage 29 | . 9 12 8 Projectiles 20 | . . 12 8 Explosions 9 | . 9 . . Melee . | . . . . Knockbacks . | . . . . Impact . | . . . . Kinetic . | . . . . Secondary . | . . . . Self-Inflicted Damage 169 | . 133 36 . Shots 7 | . 6 1 . Rammed . | . . . . Targets Rammed . | . . . . Kicked . | . . . . Crushed . | . . . . Highest Temperature 485 | 20 156 180 485 Average Temperature 94 | 18 49 51 234 Received Heat Transfer 423 | . 330 93 . Effects 3 | . . . 3 Shutdowns 1 | . . . 1 Energy Bleed 1 | . . . 1 Matter Decay 1 | . . . 1 Siege Activations . | . . . . Robots Corrupted 2 | . . 2 . Combat Hostiles 1 | . . 1 . Parts Fried 8 | . . 6 2 Impact Corruptions . | . . . . Robots Melted . | . . . . Combat Hostiles . | . . . . Parts Melted . | . . . . Heat Transferred 150 | . . 150 . Parts Sabotaged . | . . . . Parts Stolen . | . . . . Parts Stripped . | . . . . Power Chain Reactions 3 | 1 . 2 . Missiles Intercepted . | . . . . Alert | -11 -10 -9 -9 ------- Run | Scr Mat Mat Min Peak Influence 279 | 50 279 129 171 Average Influence 111 | 20 151 64 155 Maximum Alert Level 1 | . 1 . . Low Security (%) 92 | 100 81 100 100 Level 1 7 | . 18 . . Level 2 . | . . . . Level 3 . | . . . . Level 4 . | . . . . Level 5 . | . . . . High Security . | . . . . Max Security . | . . . . Squads Dispatched 3 | . 2 1 . Investigation . | . . . . Extermination . | . . . . Reinforcement 3 | . 2 1 . Assault . | . . . . Garrison . | . . . . Intercept . | . . . . Construction Impeded . | . . . . Haulers Reinforced . | . . . . Stealth | -11 -10 -9 -9 --------- Run | Scr Mat Mat Min Distress Signals 2 | . 1 1 . Communications Jammed . | . . . . Distress Signals . | . . . . Times Spotted 38 | . 18 13 7 Peak Tracking Total 6 | . 6 5 4 Tactical Retreats 2 | . 1 1 . Traps | -11 -10 -9 -9 ------- Run | Scr Mat Mat Min Traps Triggered 1 | . 1 . . Indirectly . | . . . . Trap Hack Attempts . | . . . . Triggered . | . . . . Disarmed . | . . . . Reprogrammed . | . . . . Reused . | . . . . Traps Extracted . | . . . . Installed . | . . . . Triggered . | . . . . Machines | -11 -10 -9 -9 ---------- Run | Scr Mat Mat Min Machines Disabled 3 | . 1 1 1 Max in Single Turn 1 | . 1 1 1 Machines Sabotaged . | . . . . Garrisons Compromised . | . . . . Overloaded Fab Kills . | . . . . Fab Network Shutdowns . | . . . . Hacking | -11 -10 -9 -9 --------- Run | Scr Mat Mat Min Machines Accessed . | . . . . Terminals . | . . . . Fabricators . | . . . . Repair Stations . | . . . . Recycling Units . | . . . . Scanalyzers . | . . . . Garrison Access . | . . . . Total Hacks . | . . . . Successful . | . . . . Failed . | . . . . Catastrophic . | . . . . Database Lockouts . | . . . . Manual . | . . . . Terminals . | . . . . Fabricators . | . . . . Repair Stations . | . . . . Recycling Units . | . . . . Scanalyzers . | . . . . Garrison Access . | . . . . Terminal Hacks . | . . . . Fabricator Hacks . | . . . . Repair Station Hacks . | . . . . Recycling Unit Hacks . | . . . . Scanalyzer . | . . . . Garrison Access Hacks . | . . . . Unauthorized Hacks . | . . . . Terminals . | . . . . Fabricators . | . . . . Repair Stations . | . . . . Recycling Units . | . . . . Scanalyzers . | . . . . Garrison Access . | . . . . Data Cores Recovered . | . . . . Used . | . . . . Hacking Detections . | . . . . Full Trace Events . | . . . . Feedback Events . | . . . . Feedback Blocked . | . . . . Robot Schematics Acquired . | . . . . Robots Built . | . . . . Matter . | . . . . Time . | . . . . Total Robot Build Rating . | . . . . Part Schematics Acquired . | . . . . Parts Built . | . . . . Matter . | . . . . Time . | . . . . Total Part Build Rating . | . . . . Parts Repaired . | . . . . Time . | . . . . Parts Recycled . | . . . . Recycled Matter . | . . . . Retrieved Matter . | . . . . Retrieved Components . | . . . . Parts Scanalyzed . | . . . . Part Schematics Acquired . | . . . . Parts Damaged . | . . . . Bothacking | -11 -10 -9 -9 ------------ Run | Scr Mat Mat Min Used RIF Installer . | . . . . Robots Hacked . | . . . . Non-combat . | . . . . Combat . | . . . . Robot Hacks Applied . | . . . . Relay Couplers Released . | . . . . Robots Rewired . | . . . . Allies Hacked . | . . . . Hacks Repelled . | . . . . Allies | -11 -10 -9 -9 -------- Run | Scr Mat Mat Min Total Allies . | . . . . Largest Group . | . . . . Highest-Rated Group . | . . . . Highest-Rated Ally . | . . . . Total Orders . | . . . . Ally Attacks . | . . . . Total Damage . | . . . . Kills . | . . . . Allies Corrupted . | . . . . Allies Melted . | . . . . Intel | -11 -10 -9 -9 ------- Run | Scr Mat Mat Min Robot Analysis Total . | . . . . Derelict Logs Recovered 1 | . . . 1 Drone Launches . | . . . . Drone Recoveries . | . . . . Exploration | -11 -10 -9 -9 ------------- Run | Scr Mat Mat Min Turns Passed 2082 | 242 803 617 420 Spaces Moved 1170 | 121 537 307 205 Core 7 | 4 1 2 . Treads 375 | . . 170 205 Legs 788 | 117 536 135 . Wheels . | . . . . Hover . | . . . . Flight . | . . . . Fastest Speed 50 | 50 120 120 160 Average Speed 133 | 117 120 143 160 Slowest Speed 300 | 120 200 300 160 Overloaded Moves . | . . . . Propulsion Burnouts . | . . . . Robots Hopped . | . . . . Cave-ins Triggered . | . . . . Exploration Rate (%) 30 | 5 58 16 42 Regions Visited 3 Branch Regions 1 Pre-discovered Areas . | . . . . Known Exits Taken . | . . . . Unknown Exits Taken 3 | 1 1 1 . Scrap Searched . | . . . . Spaces Dug 19 | . 19 . . Terrain Destroyed 76 | 6 64 6 . Melee . | . . . . Projectile . | . . . . AOE 76 | 6 64 6 . Actions | -11 -10 -9 -9 --------- Run | Scr Mat Mat Min Total 1513 | 183 611 446 273 Wait 175 | 31 . 88 56 Move 1167 | 120 536 306 205 Hop . | . . . . Pick Up 6 | 4 2 . . Fast Attach 34 | 8 11 15 . Attach 5 | 1 3 1 . Detach 10 | 1 3 6 . Swap 2 | . 1 1 . Drop 20 | 1 9 10 . Fire 84 | 17 36 19 12 Melee 10 | . 10 . . Ram . | . . . . Kick . | . . . . Crush . | . . . . Escape Stasis . | . . . . Rewire . | . . . . Trap . | . . . . Miscellaneous . | . . . . Route ------- -11/Scrapyard -10/Materials (discovered 2 exits: [*Mat] / [*Min]) -9/Materials -9/Mines History --------- Turn | Location | Event 6 | -11/Scrapyard | Discovered new exit (range 15) 243 | -11/Scrapyard | Entered Materials 301 | -10/Materials | Build established: Mutant 390 | -10/Materials | Discovered new exit (range 13) 648 | -10/Materials | Lost 3 parts (1n2w) 818 | -10/Materials | Discovered new exit (range 5) 899 | -10/Materials | Core integrity fell below 50% 1046 | -10/Materials | Entered another Materials area 1046 | -9/Materials | Evolved 2 slots: Propulsion x2 1608 | -9/Materials | Discovered new exit (range 7) 1663 | -9/Materials | Entered Mines 1927 | -9/Mines | Learned Materials emergency access door positions 2083 | -9/Mines | Self-destructed Last Messages --------------- 01652_ Atomic Centrifuge disabled. LOCATION=UNKNOWN GOAL=ESCAPE Something is scanning the area. 01663_ Seismic Survey Station disabled. 01666_ S-10 Pest destroyed. 01672_ Destroyed Lgt. Ion Engine. 01672_ Flight Unit fried. 01672_ S-10 Pest destroyed. 01691_ Destroyed Flight Unit. 01693_ Overheating: Matter decay (-72). 01696_ Overheating: Energy bleed (-7). 01698_ Power failure, Cld. Ion Engine shutdown. 01707_ S-10 Pest misfires. 01708_ Destroyed Flight Unit. 01708_ S-10 Pest destroyed. 01839_ Seismic Analyzer fried. 01839_ T-07 Excavator destroyed. 01927_ Acquired derelict log, extracted data. Data stored: Materials emergency access points. Map ----- +----------------------------------------------------+ | ?????????????# ##############????? | | ?????????????# #?????????????????? | | ?????????????# #?????????????????? | | ?????????????# ##??????####??????? | | ?????????????# #????### ##?????? | | ?????????????# #???## ####??? | | ?????????????## #???# ##?? | | ??????????????# ##### #?? | | ??????????????# #?? | | ??????????????######## #??? | | ????????????????????## ###??? | | ???????????????????## #????? | | ??????????????????## #????? | | ?????????????????## #????? | | ?????????????????# #????? | | ?????????????????# #????? | | ?????????????????# ##???? | | ?????????????????# ##??? | | ?????????????????# ## #??? | | ?????????????????# ?#### #??? | | ?????????????????# ????## #??? | | ?????????????????## #????## ##?? | | ??????????????????###??#### #?? | | ??????????????????????## u #?? | | ??????????????????????# ##?? | | ??????????????????????# @ #####??? | | ??????????????????????# ##??????? | | ??????????????????????# #???????? | | ??????????????????????#ss #???????? | | ??????????????????????# #???????? | | ?????????????????????# s #???????? | | ????????????????????# #???????? | | ???????????????????# #???????? | | ?????????????????? #???????? | | ????????????????? #???????? | | ???????????????? #???????? | | ??????????????? #???????? | | ??????????????#### ##???????? | | ?????????????????## ####?????????? | | ??????????????????###?????????????? | | ??????????????????????????????????? | | ??????????????????????????????????? | | ??????????????????????????????????? | | ??????????????????????????????????? | | ??????????????????????????????????? | | ??????????????????????????????????? | | ??????????????????????????????????? | | ??????????????????????????????????? | | ??????????????????????????????????? | | ??????????????????????????????????? | +----------------------------------------------------+ Best States ------------- Heat Dissipation 38 Energy Generation 14 Energy Capacity 725 Matter Stores 384 Matter Capacity 500 Sight Range 16 Terrain Scan Range 16 Terrain Scan Density 60 Evasion (%) 40 Recoil Reduction 4 Item Schematics ----------------- None Robot Schematics ------------------ None Fabricated ------------ Nothing Alien Tech Used ----------------- None Achievements -------------- Power Corrupts Challenges ------------ None Game ------ Seed AssembledDispersionSheargun Manual? 0 Play Time 00:21:10 Cumulative 2.6 hours Start 2020.04.08 @ 19:20:47 End 2020.04.08 @ 19:39:52 Sessions 1 Manual Loads 0 Difficulty Rogue Special Mode None Game No. 9 Rogue 9 Adventurer 0 Explorer 0 Win Type - Total 0 Types 0/0/0/0/0/0/0 Lore% 4 Gallery% 8 Achievement% 7 Wizard Run 0 Options --------- ASCII 0 Keyboard 0 Movement Arrows Keybinds 0 Fullscreen 1 Font 24/Smallcaps Map View 76x50 Tactical HUD 1 Map Filters NONE Filters NONE Steam 1 RUN: 8873d243-3b38-41f0-b362-bb8520e19875